bitfinex/quotes_ETHUSD_20240618
["timestamp","ask_amount","ask_price","bid_price","bid_amount"]
[1718677262239,0.56912608,3419.1,3418.9,8.80665567]
[1718677262240,0.56912608,3419.1,3418.9,1.50509524]
[1718677262580,0.116422,3420.5,3419.3,2.92457]
[1718677262581,0.6,3420.0,3419.3,2.92457]
[1718677262726,0.116422,3420.5,3420.4,11.69452]
[1718677263170,0.116422,3420.5,3420.4,14.72644567]
[1718677263466,0.005,3420.7,3420.6,11.69384]
[1718677263666,0.005,3420.7,3420.6,11.77038]
[1718677263829,0.005,3420.7,3420.6,15.87407057]
[1718677264030,0.6,3421.3,3421.2,8.76885]
[1718677264545,0.6,3421.3,3421.2,8.80077567]
[1718677265334,0.03087392,3421.3,3421.2,8.80077567]
[1718677265529,0.6,3421.3,3421.2,8.80077567]
[1718677266183,0.56912608,3421.3,3421.2,8.80077567]
[1718677266335,0.16762679,3421.8,3421.7,8.76756]
[1718677266535,0.03087392,3422.0,3421.9,8.76705]
[1718677266743,0.19850071,3422.0,3421.9,8.76705]
[1718677267040,0.19850071,3422.0,3421.9,5.87541544]
[1718677267255,0.03087392,3422.0,3421.9,0.03071544]
[1718677267556,0.19850071,3421.6,3421.5,5.84532]
[1718677267743,0.03087392,3421.6,3421.5,2.92263]
[1718677267943,0.03087392,3421.0,3420.9,0.61184213]
[1718677268162,0.19850071,3421.0,3420.9,0.61184213]
[1718677269279,0.03087392,3421.0,3420.9,0.61184213]
[1718677269491,0.19850071,3420.7,3420.6,1.22368427]
[1718677269689,0.19850071,3420.7,3420.6,5.84685]
[1718677269903,0.19850071,3421.0,3420.6,0.877037]
[1718677270201,0.19850071,3420.8,3420.7,8.77011]
[1718677270401,0.19850071,3420.8,3420.7,5.84674]
[1718677270402,0.03087392,3420.8,3420.7,5.84674]
[1718677270577,0.19850071,3420.8,3420.7,8.84674]
[1718677270902,0.19850071,3420.8,3420.7,11.77011]
[1718677271505,0.19850071,3420.8,3420.7,11.79980682]
[1718677271801,7.07155,3421.7,3420.7,11.79980682]
[1718677271802,0.16762679,3421.0,3420.9,2.9232]
[1718677272184,0.08145034,3421.0,3420.9,11.6928]
[1718677272385,0.03087392,3421.6,3421.5,8.76807]
[1718677272588,0.03087392,3421.6,3421.5,5.84538]
[1718677272769,0.03087392,3421.6,3421.5,8.76807]
[1718677272978,0.03087392,3421.8,3421.7,5.84504]
[1718677273190,0.03087392,3422.0,3421.7,5.84504]
[1718677273419,0.03087392,3422.7,3422.6,8.76525]
[1718677273916,0.116422,3423.8,3422.6,8.76525]
[1718677273917,4.0443,3423.7,3422.6,2.92175]
[1718677274121,4.11733468,3423.7,3422.9,2.92147]
[1718677274410,4.11733468,3423.7,3422.4,2.92187]
[1718677274411,2.92135,3423.1,3422.4,2.92187]
[1718677274577,3.7571,3422.9,3421.7,2.92247]
[1718677274782,0.07304994,3422.8,3422.7,2.92159]
[1718677274982,3.7571,3422.9,3422.6,2.92167]
[1718677275293,3.7529,3423.7,3423.3,2.9211]
[1718677275694,0.07303332,3423.6,3423.3,2.9211]
[1718677276116,0.07303332,3423.6,3423.4,2.92104]
[1718677276302,0.116422,3423.8,3423.4,2.92104]
[1718677276303,0.116422,3423.8,3423.6,2.9209]
[1718677276833,3.037152,3423.8,3423.7,0.02915829]
[1718677276976,2.9214,3423.1,3422.0,2.92222]
[1718677277180,3.9149,3423.0,3422.4,2.92188]
[1718677277420,3.9149,3423.0,3422.2,2.92206]
[1718677277743,3.9149,3423.0,3421.5,0.27115988]
[1718677277744,2.92196,3422.4,3421.5,2.92266]
[1718677277924,2.9224,3421.9,3421.2,2.92292]
[1718677278222,2.92272,3421.5,3421.0,2.92308]
[1718677278539,0.07307625,3421.4,3421.1,2.92298]
[1718677278720,0.07307625,3421.4,3421.0,2.92309]
[1718677279036,0.07307229,3421.6,3421.2,2.92291]
[1718677279215,0.07307229,3421.6,3421.0,2.92311]
[1718677279539,0.07307816,3422.0,3420.5,2.92351]
[1718677279679,2.99535816,3422.0,3421.3,2.9228]
[1718677280134,0.07307816,3422.0,3421.1,2.92303]
[1718677280427,2.92265,3421.6,3420.9,2.92314]
[1718677280611,0.07307837,3421.5,3421.1,2.923]
[1718677281006,0.07307837,3421.5,3421.2,2.92293]
[1718677281425,0.07307837,3421.5,3420.5,2.92349]
[1718677281426,0.07307837,3421.5,3420.8,2.92327]
[1718677281630,0.07307882,3421.4,3421.1,2.923]
[1718677281797,0.07307705,3421.6,3421.1,2.923]
[1718677282424,0.07307705,3421.6,3421.3,2.92284]
[1718677283334,0.07307705,3421.6,3421.4,5.84546]
[1718677283535,0.07307179,3422.1,3421.4,0.876846]
[1718677283681,2.99528179,3422.1,3420.8,2.92329]
[1718677283883,0.07306931,3422.0,3420.5,2.92347]
[1718677284264,4.1161,3421.3,3420.8,2.92321]
[1718677284412,7.03902,3421.3,3420.6,2.92345]
[1718677284617,0.07308918,3421.2,3420.6,2.92345]
[1718677284947,2.99604918,3421.2,3420.7,2.92334]
[1718677285250,2.99604918,3421.2,3419.6,0.2786555]
[1718677285251,2.92323,3420.9,3419.6,0.2786555]
[1718677285454,4.1161,3421.3,3420.3,2.92365]
[1718677285455,0.07309187,3420.8,3420.3,2.92365]
[1718677285594,0.07309187,3420.7,3420.5,2.92352]
[1718677285915,0.07309024,3420.9,3420.5,2.92352]
[1718677286303,0.07309024,3420.9,3420.6,2.92344]
[1718677286513,7.00873,3422.2,3421.1,2.92301]
[1718677286694,7.00873,3422.2,3420.1,2.92388]
[1718677286695,0.07307431,3422.1,3420.2,3.0]
[1718677287398,2.92227,3422.0,3421.4,2.92276]
[1718677287927,0.07307184,3421.9,3420.2,3.0]
[1718677288130,0.07307184,3421.9,3419.5,6.45135]
[1718677288131,2.92297,3421.2,3420.7,2.92336]
[1718677288285,2.92297,3421.2,3420.8,2.92328]
[1718677288286,0.0730854,3421.1,3420.8,2.92328]
[1718677288636,0.0730854,3421.1,3420.6,2.92344]
[1718677289133,0.0730854,3421.1,3420.7,0.0256058]
[1718677289336,2.9961354,3421.1,3420.7,0.0256058]
[1718677289845,2.92329,3420.8,3420.7,0.0256058]
[1718677290126,2.92329,3420.8,3419.1,10.35469]
[1718677290127,2.92345,3420.7,3420.2,2.92379]
[1718677290327,0.07309899,3420.6,3420.3,2.92371]
[1718677290548,0.07309899,3420.6,3420.3,2.94949139]
[1718677290697,5.84717,3420.5,3420.3,0.02578139]
[1718677290886,2.92384,3420.2,3419.2,2.92464]
[1718677291086,2.92399,3420.0,3419.3,2.92453]
[1718677291286,2.99720603,3419.9,3419.1,2.92473]
[1718677291591,2.99720603,3419.9,3419.2,2.92464]
[1718677291813,0.07311603,3419.9,3419.2,2.92464]
[1718677291986,0.07311603,3419.9,3418.9,2.92484]
[1718677292296,3.8515,3419.6,3418.3,7.43]
[1718677292499,0.07311873,3419.5,3419.2,2.92464]
[1718677293289,0.07311873,3419.5,3419.3,2.92456]
[1718677293520,3.8515,3419.6,3418.9,2.92488]
[1718677293830,3.085,3420.6,3419.4,2.92448]
[1718677293831,2.92349,3420.6,3419.4,2.92448]
[1718677294029,0.07310532,3420.5,3419.4,2.92448]
[1718677294191,0.07310532,3420.5,3419.8,2.92413]
[1718677294528,2.92401,3420.0,3419.4,2.92447]
[1718677294829,0.0731149,3419.9,3419.4,2.92447]
[1718677295124,2.9971849,3419.9,3419.4,2.92447]
[1718677295324,0.0731149,3419.9,3419.5,2.92437]
[1718677295552,2.9971949,3419.9,3419.3,2.92456]
[1718677295726,2.92453,3419.4,3418.9,2.92491]
[1718677295904,0.07312344,3419.3,3418.9,2.92491]
[1718677296102,0.07312344,3419.3,3418.7,2.92506]
[1718677296437,2.92484,3419.0,3418.4,2.92527]
[1718677296639,3.8094,3418.8,3417.9,2.92575]
[1718677296848,3.8094,3419.8,3418.8,2.92495]
[1718677296999,2.92461,3419.3,3418.6,2.92516]
[1718677297198,0.07313122,3419.2,3418.6,2.92516]
[1718677297398,0.07313122,3419.2,3418.7,2.92506]
[1718677297624,0.07313122,3419.2,3418.2,2.92549]
[1718677297826,0.07313122,3419.2,3418.9,2.92487]
[1718677298026,3.8094,3419.8,3418.3,2.92538]
[1718677298027,0.073125,3419.4,3418.3,2.92538]
[1718677298213,0.073125,3419.4,3419.1,2.92468]
[1718677298539,2.92463,3419.3,3418.8,2.92499]
[1718677298725,0.07312883,3419.2,3418.8,2.92499]
[1718677298917,2.99779883,3419.2,3418.6,2.9251]
[1718677299430,2.99779883,3419.2,3418.7,2.92506]
[1718677300039,0.07312883,3419.2,3418.7,2.92506]
[1718677300446,0.07312883,3419.2,3418.9,2.92489]
[1718677300743,2.92496,3418.9,3418.3,2.92539]
[1718677300948,2.92496,3418.9,3418.1,2.92558]
[1718677300949,2.9251,3418.7,3418.2,2.92549]
[1718677301147,0.07313904,3418.6,3418.1,2.92559]
[1718677301640,0.07313904,3418.6,3418.0,2.92563]
[1718677301824,0.07313904,3418.6,3418.2,2.9255]
[1718677302143,0.07313904,3418.6,3417.7,2.92593]
[1718677302703,0.07313904,3418.6,3418.2,2.92546]
[1718677302909,0.07313904,3418.6,3418.1,2.92558]
[1718677303705,0.07313904,3418.6,3418.2,2.92547]
[1718677304106,0.07313904,3418.6,3418.3,2.92542]
[1718677305831,0.07313904,3418.6,3418.4,2.92532]
[1718677306347,4.0887,3419.3,3419.1,5.84947]
[1718677306506,0.07312183,3419.2,3419.1,5.84947]
[1718677306711,7.01247,3420.3,3418.4,0.292532]
[1718677306922,7.01247,3420.3,3419.6,2.92425]
[1718677306923,2.92381,3420.2,3419.6,2.92425]
[1718677307140,0.07311356,3420.1,3419.6,2.92425]
[1718677307641,0.07311356,3420.1,3419.7,2.92418]
[1718677307807,0.07311356,3420.1,3419.8,2.92413]
[1718677308010,0.07311356,3420.1,3419.6,2.92425]
[1718677309006,3.07311356,3420.1,3419.7,2.92421]
[1718677309211,0.07311356,3420.1,3419.9,2.92405]
[1718677309433,3.07310635,3420.2,3420.0,2.92394]
[1718677309854,3.07310635,3420.2,3419.9,2.92405]
[1718677311134,0.07310635,3420.2,3419.4,2.92445]
[1718677311324,2.93,3420.9,3420.7,2.92331]
[1718677311325,4.0887,3420.9,3420.7,2.92331]
[1718677311937,4.0887,3420.9,3420.7,5.84666]
[1718677312144,4.0887,3420.9,3420.7,2.92331]
[1718677312456,4.0887,3420.9,3420.7,5.84666]
[1718677312956,4.0887,3420.9,3420.7,2.92331]
[1718677313280,4.0887,3420.9,3420.7,5.84668]
[1718677313427,7.0887,3421.6,3421.2,2.92288]
[1718677313626,3.0,3421.5,3421.2,2.92288]
[1718677313826,0.07308105,3421.4,3421.2,2.92288]
[1718677314223,3.7684,3422.5,3420.8,2.92327]
[1718677314426,9.84832173,3422.5,3421.9,2.92227]
[1718677314864,2.92194,3422.4,3421.9,2.92227]
[1718677315160,0.07306521,3422.3,3421.6,2.92256]
[1718677315365,2.99508521,3422.3,3421.8,2.92239]
[1718677315864,0.07306521,3422.3,3421.8,2.92239]
[1718677316072,2.92239,3421.9,3420.8,2.92327]
[1718677316224,2.92239,3421.9,3421.2,2.92293]
[1718677316225,2.99554294,3421.8,3421.2,2.92293]
[1718677316570,2.99561832,3421.7,3421.2,2.92293]
[1718677316724,2.99561832,3421.7,3421.0,2.92304]
[1718677316920,2.92288,3421.3,3420.8,2.92327]
[1718677317169,0.07308514,3421.2,3420.9,2.92319]
[1718677317343,0.07308514,3421.2,3421.0,5.84613]
[1718677317834,0.07308042,3421.5,3421.1,2.92302]
[1718677318038,2.92289,3421.3,3420.9,2.92319]
[1718677318250,0.07308724,3421.2,3420.9,2.92319]
[1718677318456,0.07308724,3421.2,3420.4,2.9236]
[1718677318457,0.07308724,3421.2,3421.0,2.92309]
[1718677319242,2.99586295,3421.4,3421.0,2.92309]
[1718677319447,0.07308295,3421.4,3421.1,2.92302]
[1718677319966,0.07308295,3421.4,3421.2,2.92292]
[1718677320185,4.1455,3422.5,3421.7,2.9225]
[1718677320382,0.0730668,3422.4,3421.7,2.9225]
[1718677320528,2.9221,3422.2,3421.7,2.9225]
[1718677320726,0.07306679,3422.1,3421.7,2.9225]
[1718677321381,0.07306679,3422.1,3421.8,2.92242]
[1718677321669,7.2305,3422.5,3422.0,2.92222]
[1718677321670,0.07306571,3422.3,3422.0,2.92222]
[1718677321875,0.07306143,3422.2,3422.0,2.92222]
[1718677322174,5.85142,3423.0,3422.0,2.92222]
[1718677322175,0.07306143,3422.4,3422.2,2.92209]
[1718677322327,2.93,3423.0,3422.1,2.92216]
[1718677322328,0.07305426,3422.9,3422.1,2.92216]
[1718677322527,0.07305426,3422.9,3422.6,2.92171]
[1718677322764,2.92167,3422.7,3422.2,2.92204]
[1718677322930,2.92167,3422.7,3420.6,2.92339]
[1718677322931,2.92186,3422.5,3420.9,2.9232]
[1718677323131,2.92202,3422.3,3421.8,2.92241]
[1718677323343,6.00668,3422.7,3420.4,2.92357]
[1718677323344,2.92227,3422.0,3420.4,2.92357]
[1718677323534,2.99548814,3421.9,3421.4,2.92272]
[1718677323930,2.99548814,3421.9,3421.2,2.92291]
[1718677324267,2.92267,3421.6,3419.8,2.6465]
[1718677324487,0.07308384,3421.5,3420.7,2.92332]
[1718677324788,0.07308384,3421.5,3419.4,2.92443]
[1718677324789,2.92323,3420.9,3419.9,2.92403]
[1718677324929,2.92304,3421.1,3420.1,2.92381]
[1718677324930,2.9234,3420.7,3420.1,2.92381]
[1718677325129,0.07309804,3420.6,3420.1,2.92381]
[1718677325368,2.92356,3420.5,3420.1,2.92381]
[1718677325543,2.9233,3420.8,3419.8,2.92412]
[1718677325544,0.07310404,3420.4,3419.8,2.92412]
[1718677325758,0.07310404,3420.4,3418.6,10.0765]
[1718677326065,0.07310634,3420.6,3420.4,2.92358]
[1718677326381,2.92391,3420.1,3419.5,2.92435]
[1718677326532,0.07310909,3420.0,3419.6,2.9243]
[1718677326962,2.9229,3421.3,3419.1,2.92474]
[1718677327263,0.07310116,3420.9,3419.6,2.92428]
[1718677327467,2.92333,3420.8,3420.0,2.92396]
[1718677327768,0.0730941,3420.7,3420.3,2.92364]
[1718677328073,0.0730941,3420.7,3420.4,2.92356]
[1718677328228,0.0730941,3420.7,3419.6,2.92428]
[1718677328229,0.07309242,3420.9,3420.0,2.92395]
[1718677328431,0.07309242,3420.9,3420.1,2.92387]
[1718677328635,0.07309242,3420.9,3420.4,2.92363]
[1718677328866,2.92339,3420.7,3419.6,2.92428]
[1718677329069,2.92365,3420.4,3419.6,2.92428]
[1718677329379,0.07310576,3420.3,3420.1,2.92387]
[1718677329546,3.7612,3421.0,3420.1,2.92387]
[1718677329745,2.92373,3420.3,3419.7,2.92415]
[1718677329970,0.07310902,3420.2,3420.0,2.92396]
[1718677330361,0.07310902,3420.2,3418.8,13.35498]
[1718677330362,0.07310902,3420.2,3419.3,2.92454]
[1718677330872,0.07310902,3420.2,3419.8,2.92413]
[1718677330873,2.99692902,3420.2,3419.8,2.92413]
[1718677331234,0.07310902,3420.2,3419.9,2.92405]
[1718677331570,0.07310582,3420.1,3419.9,2.92405]
[1718677331775,0.07310582,3420.3,3419.9,2.92405]
[1718677331975,0.07310582,3420.2,3419.9,2.92405]
[1718677332376,0.07310582,3420.2,3420.0,6.432726]
[1718677332534,5.28455432,3421.9,3421.7,2.92244]
[1718677332842,5.28455432,3421.9,3420.0,10.657626]
[1718677332843,2.92261,3421.6,3420.0,10.657626]
[1718677333049,7.00946,3421.9,3421.3,2.92285]
[1718677333050,0.07308298,3421.5,3421.3,2.92285]
[1718677333438,0.07308298,3421.5,3421.1,2.92295]
[1718677333633,0.07308298,3421.5,3421.0,2.92311]
[1718677334071,0.07308298,3421.5,3421.2,2.92292]
[1718677334273,0.07308298,3421.5,3421.0,2.92311]
[1718677334779,0.07308298,3421.5,3421.1,2.92298]
[1718677335086,0.07308298,3421.5,3421.3,2.92283]
[1718677335438,0.07307528,3421.8,3421.4,2.92276]
[1718677335638,0.0730742,3421.7,3421.5,2.92266]
[1718677335882,0.0730742,3421.8,3421.7,2.92252]
[1718677336184,2.92211,3422.2,3421.7,2.92252]
[1718677336355,2.9951766,3422.2,3421.7,2.92252]
[1718677336551,0.0730666,3422.2,3421.8,2.9224]
[1718677336850,0.0730666,3422.2,3421.6,2.9226]
[1718677337053,0.0730666,3422.2,3421.9,2.92227]
[1718677337275,3.7796,3422.4,3422.0,2.92225]
[1718677337483,3.7796,3422.4,3422.2,2.92208]
[1718677337641,4.0131,3423.1,3421.8,2.92243]
[1718677337842,2.92143,3423.0,3421.9,2.92233]
[1718677338037,2.92143,3423.0,3421.4,2.92277]
[1718677338038,2.92159,3422.8,3422.3,2.922]
[1718677338377,2.9215,3422.9,3422.4,2.9219]
[1718677338581,0.07305268,3422.8,3422.6,2.92171]
[1718677338873,4.0131,3423.1,3421.9,2.92231]
[1718677338874,4.0131,3423.1,3422.7,2.92162]
[1718677339173,4.0131,3423.1,3421.4,2.92273]
[1718677339342,2.99447301,3423.0,3422.5,2.92182]
[1718677340440,0.07305301,3423.0,3422.5,2.92182]
[1718677340788,0.07305301,3423.0,3422.8,2.92157]
[1718677340976,0.07305301,3423.0,3422.4,2.92186]
[1718677341390,0.07305301,3423.0,3422.8,2.92157]
[1718677341549,0.07305301,3423.0,3422.6,2.92169]
[1718677341751,2.92171,3422.7,3422.1,2.92216]
[1718677341976,4.0131,3423.1,3421.9,2.92234]
[1718677342173,0.07304946,3423.0,3422.8,2.92156]
[1718677342383,4.061022,3423.8,3422.6,2.92168]
[1718677342551,0.07303159,3423.7,3422.6,2.92168]
[1718677343390,0.07303159,3423.7,3423.5,2.92096]
[1718677343745,0.116422,3423.8,3423.7,2.92081]
[1718677344773,0.116422,3423.8,3423.7,5.84162]
[1718677345155,0.116422,3423.8,3423.7,8.76243]
[1718677347179,0.116422,3423.8,3423.7,9.930768]
[1718677347592,0.116422,3423.8,3423.7,8.76243]
[1718677350410,0.04256378,3423.8,3423.7,8.76243]
[1718677351211,0.04256378,3423.8,3423.6,2.92089]
[1718677351498,0.04256378,3423.8,3423.6,5.84178]
[1718677351698,0.04256378,3423.8,3423.6,8.76267]
[1718677353876,0.04256378,3423.8,3423.4,2.92104]
[1718677354069,0.04256378,3423.8,3423.5,2.92095]
[1718677354403,0.04256378,3423.8,3423.2,2.92116]
[1718677354404,0.11559147,3423.8,3423.3,2.92107]
[1718677354574,0.11559147,3423.8,3423.0,2.9214]
[1718677354780,2.92099,3423.5,3422.9,2.92141]
[1718677355099,0.07303447,3423.4,3423.0,2.9214]
[1718677355401,2.99410447,3423.4,3422.9,2.92148]
[1718677355712,2.92161,3422.8,3422.3,2.92194]
[1718677355862,2.92122,3423.3,3422.4,2.92191]
[1718677355863,0.07304808,3422.7,3422.4,2.92191]
[1718677356262,0.07304808,3422.7,3422.0,2.92224]
[1718677356511,0.07304808,3422.7,3422.0,3.214464]
[1718677356663,0.07304808,3422.7,3422.5,2.92183]
[1718677356863,0.07304698,3422.8,3422.5,2.92183]
[1718677357308,0.07304698,3422.8,3422.3,2.92196]
[1718677357513,0.07304804,3422.7,3422.4,2.9219]
[1718677358035,2.92133,3423.1,3420.7,0.6065831]
[1718677358332,3.7982,3422.3,3421.6,2.92257]
[1718677358469,2.92219,3422.1,3421.6,2.92257]
[1718677358668,0.07306659,3422.0,3421.6,2.92257]
[1718677359182,2.99533659,3422.0,3421.6,2.92257]
[1718677359385,2.9216,3422.8,3422.1,2.92211]
[1718677359611,0.07305373,3422.7,3422.1,2.92211]
[1718677359792,0.07305373,3422.7,3422.5,2.92181]
[1718677360124,0.0730481,3422.9,3422.5,2.92181]
[1718677360639,0.07304809,3422.9,3422.5,2.92181]
[1718677360792,2.92142,3423.0,3422.5,2.92181]
[1718677360993,0.07304558,3422.9,3422.5,2.92181]
[1718677361317,0.07304558,3422.9,3422.5,2.92182]
[1718677362031,0.07304634,3423.1,3422.5,2.92182]
[1718677362336,2.92144,3423.0,3422.5,2.92182]
[1718677362491,2.93,3423.4,3422.6,2.92174]
[1718677362492,0.07304633,3422.9,3422.6,2.92174]
[1718677362692,0.07304472,3423.3,3423.1,2.92131]
[1718677362896,0.07304472,3423.3,3422.9,2.92144]
[1718677363199,0.07303799,3423.2,3423.0,2.92138]
[1718677363403,0.04256378,3423.8,3423.0,2.92138]
[1718677363604,0.04256378,3423.8,3422.8,2.9215]
[1718677363605,0.07303553,3423.7,3423.2,2.92118]
[1718677363803,2.99387553,3423.7,3423.0,2.92134]
[1718677363994,2.92091,3423.6,3423.1,2.92131]
[1718677364187,0.07303444,3423.5,3423.1,2.92131]
[1718677364592,0.07303444,3423.5,3423.2,2.92122]
[1718677364944,0.07303444,3423.5,3422.9,2.92143]
[1718677364945,0.04256378,3423.8,3423.6,5.84175]
[1718677365641,0.04256378,3423.8,3423.6,8.76265]
[1718677365855,0.04256378,3423.8,3423.6,2.92085]
[1718677366553,0.04256378,3423.8,3422.7,2.92164]
[1718677366554,0.04256378,3423.8,3423.3,2.92111]
[1718677366829,0.04256378,3423.8,3423.6,2.92088]
[1718677367016,0.04256378,3423.8,3423.6,8.76265]
[1718677367630,0.04256378,3423.8,3423.6,2.92088]
[1718677368195,0.04256378,3423.8,3422.5,2.6135]
[1718677368196,2.92103,3423.5,3423.0,2.92138]
[1718677368515,0.04256378,3423.8,3423.2,2.92121]
[1718677369222,0.04256378,3423.8,3423.5,2.92097]
[1718677369728,0.04256378,3423.8,3423.5,2.9209]
[1718677370311,0.04256378,3423.8,3423.3,2.92108]
[1718677370509,0.1155934,3423.8,3423.3,2.92108]
[1718677370710,2.92134,3423.1,3422.5,2.92177]
[1718677370919,0.07304491,3423.0,3422.5,2.92177]
[1718677371241,2.92125,3423.2,3421.8,2.92239]
[1718677371394,2.92164,3422.8,3422.3,2.92199]
[1718677371595,0.07305277,3422.7,3422.3,2.92199]
[1718677371840,2.97256378,3423.8,3422.4,0.05844216]
[1718677372034,2.9211,3423.4,3422.2,2.92201]
[1718677372237,2.9211,3423.4,3421.3,2.92284]
[1718677372238,0.0730388,3423.3,3423.1,2.92131]
[1718677372531,0.0730388,3423.3,3422.9,2.92142]
[1718677372740,0.0730388,3423.3,3423.0,2.92135]
[1718677372896,0.07303575,3423.2,3422.8,2.92151]
[1718677373098,0.07303575,3423.2,3423.0,5.84277]
[1718677373342,0.07303606,3423.6,3423.1,2.92131]
[1718677373749,2.99395606,3423.6,3423.1,2.92131]
[1718677375019,0.07303606,3423.6,3423.1,2.92131]
[1718677375222,0.07303606,3423.6,3422.2,2.92203]
[1718677375223,2.92108,3423.4,3422.9,2.92142]
[1718677375442,0.07303876,3423.3,3422.9,2.92142]
[1718677375660,0.07303804,3423.2,3423.0,2.9214]
[1718677376150,0.07303695,3423.7,3422.6,2.92174]
[1718677376316,2.92121,3423.3,3422.6,2.92174]
[1718677376521,0.07304517,3423.2,3422.6,2.92174]
[1718677376739,2.99429517,3423.2,3422.6,2.92174]
[1718677377058,2.99429517,3423.2,3422.7,2.92165]
[1718677377227,2.92133,3423.1,3422.7,2.92165]
[1718677377563,0.07304408,3423.0,3422.4,2.92185]
[1718677378046,0.07304408,3423.0,3422.4,2.92188]
[1718677378211,2.99446408,3423.0,3422.4,2.92185]
[1718677378413,2.99446408,3423.0,3422.4,2.92184]
[1718677379049,3.8257,3422.9,3422.4,2.92184]
[1718677379353,2.92177,3422.6,3422.1,2.92217]
[1718677379517,0.07305888,3422.5,3422.1,2.92217]
[1718677380917,0.07305888,3422.5,3422.3,2.92199]
[1718677381129,0.07305264,3422.8,3422.2,2.92207]
[1718677381321,6.7472,3422.9,3421.9,2.92228]
[1718677381322,0.07305369,3422.7,3421.9,2.92228]
[1718677381558,0.07305369,3422.7,3421.2,2.92294]
[1718677381559,2.92219,3422.1,3421.6,2.9226]
[1718677381879,0.07306745,3422.0,3421.7,2.9225]
[1718677382518,2.92193,3422.4,3421.7,2.9225]
[1718677382519,0.07306402,3422.3,3421.7,2.9225]
[1718677382728,0.073064,3422.2,3421.7,2.9225]
[1718677382954,0.073064,3422.2,3421.8,2.9224]
[1718677383272,3.9948,3422.1,3421.1,2.923]
[1718677383472,2.92275,3421.5,3420.9,2.92318]
[1718677383772,0.07308335,3421.4,3420.9,2.92318]
[1718677383931,2.9223,3422.0,3421.2,2.92293]
[1718677383932,2.92227,3422.0,3421.2,2.92293]
[1718677384128,3.9948,3422.1,3420.9,2.92319]
[1718677384463,0.07307626,3422.0,3421.0,2.92304]
[1718677384651,2.92236,3421.9,3421.4,2.92276]
[1718677384861,0.07307091,3421.8,3421.4,2.92276]
[1718677385567,0.07307091,3421.8,3420.5,2.92351]
[1718677385568,0.07307091,3421.8,3421.2,2.92287]
[1718677385731,0.07307091,3421.8,3421.3,2.92285]
[1718677385942,2.99551091,3421.8,3421.3,2.92285]
[1718677386750,2.792,3422.5,3421.3,2.92285]
[1718677386751,2.92181,3422.6,3421.8,2.92241]
[1718677386984,1.49853087,3423.3,3421.3,0.58458]
[1718677386985,3.9325,3423.2,3421.3,0.58458]
[1718677387287,3.9325,3423.2,3422.5,2.92181]
[1718677387288,2.92146,3423.0,3422.5,2.92181]
[1718677387446,0.07304758,3422.9,3422.4,2.9219]
[1718677387646,2.99456758,3422.9,3422.1,2.92212]
[1718677387860,0.07304758,3422.9,3422.0,2.92226]
[1718677388203,0.07304758,3422.9,3422.5,2.9218]
[1718677388487,0.0730475,3422.9,3422.7,2.92161]
[1718677388675,0.07304199,3423.1,3422.8,2.92154]
[1718677388873,0.07304199,3423.1,3422.5,2.92177]
[1718677388874,0.07304199,3423.1,3421.8,2.92243]
[1718677389073,0.07304199,3423.1,3422.6,2.92174]
[1718677389731,2.92142,3423.0,3422.4,2.92185]
[1718677389994,0.07304944,3422.9,3422.4,2.92185]
[1718677390199,0.07304944,3422.9,3422.4,0.584387]
[1718677390384,4.0219,3423.7,3423.5,2.92095]
[1718677390690,0.04256378,3423.8,3423.6,2.9209]
[1718677390893,0.04256378,3423.8,3423.7,0.05841619]
[1718677391094,0.04256378,3423.8,3423.6,8.7627]
[1718677391262,0.04256378,3423.8,3423.6,11.6836]
[1718677391681,0.04256378,3423.8,3423.7,1.16836]
[1718677392361,0.07300991,3425.1,3424.8,2.91983]
[1718677393089,0.07300991,3425.1,3424.3,2.92027]
[1718677393291,0.07300991,3425.1,3423.2,2.92119]
[1718677393598,0.07300991,3425.1,3424.6,2.92002]
[1718677394153,0.07300991,3425.1,3424.7,2.91992]
[1718677394390,0.07300991,3425.1,3424.8,2.9198]
[1718677394685,0.07300991,3425.1,3423.7,2.92075]
[1718677394893,2.92,3424.7,3424.0,2.92053]
[1718677395188,2.92032,3424.3,3423.8,2.92068]
[1718677395504,0.07302071,3424.2,3423.9,2.92062]
[1718677396283,2.99325962,3424.4,3423.9,2.92062]
[1718677396652,2.92033,3424.3,3423.7,2.92075]
[1718677396886,2.92033,3424.3,3423.6,2.92083]
[1718677396887,0.07302281,3424.2,3423.8,2.92067]
[1718677397670,2.92051,3424.1,3423.6,2.92083]
[1718677397892,0.07302427,3424.0,3423.6,2.92083]
[1718677398280,0.07302427,3424.0,3423.7,2.92078]
[1718677398501,0.07302427,3424.0,3423.8,5.84142]
[1718677398681,0.55,3425.0,3424.5,2.92011]
[1718677398682,3.8433,3424.9,3424.5,2.92011]
[1718677398885,0.07300804,3424.8,3424.5,2.92011]
[1718677399208,0.07300804,3424.8,3424.3,2.92024]
[1718677399493,0.07300804,3424.8,3424.4,2.92018]
[1718677399712,2.99289804,3424.8,3424.2,2.92034]
[1718677400402,2.99289804,3424.8,3424.3,2.92028]
[1718677400765,2.99289804,3424.8,3424.3,2.79761271]
[1718677400965,2.92008,3424.6,3424.0,2.92054]
[1718677401207,2.92025,3424.4,3423.8,2.92072]
[1718677401404,0.07302024,3424.3,3422.3,3.23260957]
[1718677401575,0.07302231,3424.2,3423.5,2.92092]
[1718677401771,0.07302231,3424.2,3423.8,2.92071]
[1718677402307,0.07302231,3424.2,3424.0,2.92054]
[1718677402598,0.07302231,3424.2,3423.7,2.92076]
[1718677402599,2.92028,3424.4,3423.8,2.9207]
[1718677402795,0.0730202,3424.3,3423.8,2.9207]
[1718677403092,0.0730202,3424.3,3423.9,2.92062]
[1718677403284,0.0730202,3424.3,3423.5,2.9209]
[1718677403506,2.9933702,3424.3,3423.8,2.92066]
[1718677403686,2.92048,3424.1,3423.4,2.92104]
[1718677403862,2.92069,3423.9,3423.4,2.92104]
[1718677404061,0.07302795,3423.8,3423.4,2.92104]